fUSD/lending_fUSD_20240805
["ID","MTS","AMOUNT","RATE_DAILY","PERIOD"]
[334253797,1722867054077,-420.67,0.0001926,2]
[334253798,1722867054086,-834.66,0.0001926,2]
[334253799,1722867054095,-420.67,0.0001926,2]
[334253800,1722867054105,-832.46,0.0001926,2]
[334253801,1722867054115,-747.61,0.0001926,2]
[334253802,1722867054124,-834.66,0.0001926,2]
[334253803,1722867054134,-834.66,0.0001926,2]
[334253804,1722867054143,-834.66,0.0001926,2]
[334253805,1722867054153,-420.67,0.0001926,2]
[334253806,1722867054163,-420.67,0.0001926,2]
[334253807,1722867054172,-834.66,0.0001926,2]
[334253808,1722867054182,-420.67,0.0001926,2]
[334253809,1722867054191,-834.66,0.0001926,2]
[334253810,1722867054203,-426.02,0.0001926,2]
[334253811,1722867054213,-153.93183382,0.0001933,2]
[334253812,1722867054222,-2328.95,0.000194,2]
[334253813,1722867054233,-553.66,0.0001943,2]
[334253814,1722867054243,-481.61,0.00019455,2]
[334253815,1722867054252,-420.67,0.00019455,2]
[334253816,1722867054262,-838.59,0.00019455,2]
[334253817,1722867054271,-1016.97,0.00019463,2]
[334253818,1722867054281,-1100.44,0.00019463,2]
[334253819,1722867054291,-1000.0,0.000195,2]
[334253820,1722867054301,-800.0,0.00019587,2]
[334253821,1722867054311,-2384.7960601,0.00019599,2]
[334253822,1722867054321,-1076.0,0.000196,2]
[334253823,1722867054330,-1396.91,0.000196,7]
[334253824,1722867054340,-225.75664,0.00019662,2]
[334253825,1722867054351,-225.75664,0.00019662,2]
[334253826,1722867054360,-151.0,0.00019662,2]
[334253827,1722867054370,-151.0,0.00019662,2]
[334253828,1722867054379,-237.57617,0.00019662,2]
[334253829,1722867054389,-237.57617,0.00019662,2]
[334253830,1722867054399,-264.162203,0.00019662,2]
[334253831,1722867054408,-264.162203,0.00019662,2]
[334253832,1722867054418,-151.0,0.00019662,2]
[334253833,1722867054428,-151.0,0.00019662,2]
[334253834,1722867054438,-500.0,0.00019664,2]
[334253835,1722867054450,-591.87,0.00019664,2]
[334253836,1722867054460,-150.0,0.00019699,2]
[334253837,1722867054470,-150.0,0.00019699,2]
[334253838,1722867054480,-150.0,0.00019699,2]
[334253839,1722867054489,-150.0,0.00019699,2]
[334253840,1722867054499,-150.0,0.00019699,2]
[334253841,1722867054509,-283.11,0.00019699,2]
[334253842,1722867054518,-150.0,0.00019699,2]
[334253843,1722867054528,-150.0,0.00019699,2]
[334253844,1722867054538,-150.0,0.00019699,2]
[334253845,1722867054547,-356.25,0.00019699,2]
[334253846,1722867054557,-150.0,0.00019699,2]
[334253847,1722867054566,-150.0,0.00019699,2]
[334253848,1722867054577,-150.0,0.00019699,2]
[334253849,1722867054586,-150.0,0.00019699,2]
[334253850,1722867054596,-150.0,0.00019699,2]
[334253851,1722867054606,-150.0,0.00019699,2]
[334253852,1722867054615,-150.0,0.00019699,2]
[334253853,1722867054625,-150.0,0.00019699,2]
[334253854,1722867054897,-150.0,0.00019699,2]
[334253855,1722867054938,-150.0,0.00019699,2]
[334253856,1722867054951,-150.0,0.00019699,2]
[334253857,1722867054961,-323.48,0.00019699,2]
[334253858,1722867054974,-150.0,0.00019699,2]
[334253859,1722867054983,-150.0,0.00019699,2]
[334253860,1722867054994,-150.0,0.00019699,2]
[334253861,1722867055004,-443.4,0.00019699,2]
[334253862,1722867055014,-150.0,0.00019699,2]
[334253863,1722867055024,-300.0,0.00019699,2]
[334253864,1722867055034,-356.25,0.00019699,2]
[334253865,1722867055044,-356.25,0.00019699,2]
[334253866,1722867055054,-356.25,0.00019699,2]
[334253867,1722867055063,-150.0,0.00019789,2]
[334253868,1722867055073,-150.0,0.00019789,2]
[334253869,1722867055083,-150.0,0.00019789,2]
[334253870,1722867055093,-150.0,0.00019789,2]
[334253871,1722867055102,-6288.50435063,0.0002,2]
[334253872,1722867055112,-258.34964447,0.0002,2]
[334253873,1722867055122,-17826.63863775,0.0002,2]
[334253874,1722867055131,-1382.65569134,0.0002,2]
[334253875,1722867055141,-250.0,0.0002,7]
[334253876,1722867055150,-155.25725077,0.0002,2]
[334253877,1722867055160,-150.23,0.0002,2]
[334253878,1722867055170,-192.0,0.0002,2]
[334253879,1722867055180,-823.72670201,0.0002,2]
[334253880,1722867055190,-625.8586866,0.0002,2]
[334253881,1722867055202,-155.0,0.0002,2]
[334253882,1722867055212,-4147.17691329,0.0002,30]
[334253883,1722867055222,-2000.0,0.0002,2]
[334253884,1722867055232,-1000.0,0.0002,2]
[334253885,1722867055241,-2000.0,0.0002001,2]
[334253886,1722867055251,-2000.0,0.0002002,2]
[334253887,1722867055261,-275.0,0.0002003,2]
[334253888,1722867055272,-3743.198623,0.0002003,2]
[334253889,1722867055283,-622.0,0.00020033,2]
[334253890,1722867055293,-1925.0,0.00020033,2]
[334253891,1722867055303,-1256.0,0.00020033,2]
[334253892,1722867055315,-365.768,0.00020033,2]
[334253893,1722867055326,-429.059,0.00020033,2]
[334253894,1722867055338,-150.0,0.00020033,2]
[334253895,1722867055351,-1893.0,0.00020033,2]
[334253896,1722867055362,-550.0,0.00020033,2]
[334253897,1722867055373,-630.881,0.00020033,2]
[334253898,1722867055383,-3288.0,0.00020033,2]
[334253899,1722867055394,-150.0,0.00020033,2]
[334253900,1722867055405,-202.619215,0.00020033,2]
[334253901,1722867055416,-426.02,0.00020082,2]
[334253902,1722867055427,-426.02,0.00020082,2]
[334253903,1722867055438,-801.73,0.00020082,2]
[334253905,1722867055455,-151.67,0.00020082,2]
[334253906,1722867055472,-150.0,0.00020082,2]
[334253907,1722867055482,-300.0,0.00020082,2]
[334253908,1722867055494,-150.0,0.00020082,2]
[334253909,1722867055505,-150.0,0.00020082,2]
[334253910,1722867055516,-150.0,0.00020082,2]
[334253911,1722867055526,-150.0,0.00020082,2]
[334253912,1722867055536,-712.22,0.00020082,2]
[334253913,1722867055547,-834.66,0.00020219,2]
[334253914,1722867055558,-420.67,0.00020219,2]
[334253915,1722867055568,-834.66,0.00020219,2]
[334253916,1722867055579,-834.66,0.00020219,2]
[334253917,1722867055589,-834.66,0.00020219,2]
[334253918,1722867055599,-200.0,0.00020246,2]
[334253919,1722867055609,-500.0,0.00020328,2]
[334253920,1722867055619,-600.0,0.00020345,2]
[334253921,1722867055630,-1176.62868321,0.00020439,2]
[334253922,1722867055640,-299.16,0.00020447,2]
[334253923,1722867055651,-161.4,0.00020447,2]
[334253924,1722867055661,-600.0,0.00020462,2]
[334253925,1722867055672,-2328.95,0.000205,2]
[334253926,1722867055683,-961.8087359,0.00020503,2]
[334253927,1722867055693,-530.56,0.00020521,2]
[334253928,1722867055711,-356.25,0.00020521,2]
[334253929,1722867055722,-530.56,0.00020521,2]
[334253930,1722867055732,-530.56,0.00020521,2]
[334253931,1722867055741,-530.56,0.00020521,2]
[334253932,1722867055752,-530.56,0.00020521,2]
[334253933,1722867055762,-530.56,0.00020521,2]
[334253934,1722867055773,-426.02,0.00020521,2]
[334253935,1722867055783,-426.02,0.00020521,2]
[334253936,1722867055794,-426.02,0.00020521,2]
[334253937,1722867055803,-426.02,0.00020521,2]
[334253938,1722867055814,-426.02,0.00020521,2]
[334253939,1722867055824,-426.02,0.00020521,2]
[334253940,1722867055834,-426.02,0.00020521,2]
[334253941,1722867055844,-851.89,0.00020521,2]
[334253942,1722867055854,-426.02,0.00020521,2]
[334253943,1722867055864,-851.46,0.00020521,2]
[334253944,1722867055874,-426.02,0.00020521,2]
[334253945,1722867055887,-426.02,0.00020521,2]
[334253946,1722867055900,-264.41,0.00020521,2]
[334253947,1722867055910,-500.0,0.00020546,2]
[334253948,1722867055922,-545.3954256,0.00020602,2]
[334253949,1722867055932,-150.0,0.00020611,2]
[334253950,1722867055942,-150.0,0.00020611,2]
[334253951,1722867055959,-711.13,0.00020611,2]
[334253952,1722867055970,-530.56,0.00020611,2]
[334253953,1722867055980,-530.56,0.00020611,2]
[334253954,1722867055991,-530.56,0.00020611,2]
[334253955,1722867056001,-530.56,0.00020611,2]
[334253956,1722867056011,-530.56,0.00020611,2]
[334253957,1722867056021,-426.02,0.00020611,2]
[334253958,1722867056031,-426.02,0.00020611,2]
[334253959,1722867056040,-212.0,0.0002065,2]
[334253960,1722867056050,-500.0,0.00020786,2]
[334253961,1722867056061,-2701.7400984,0.00020819,2]
[334253962,1722867056072,-155.0,0.00020831,2]
[334253963,1722867056082,-712.3,0.00020904,2]
[334253964,1722867056092,-1060.07,0.00020904,2]
[334253965,1722867056102,-500.0,0.00020932,2]
[334253966,1722867056114,-500.0,0.00020944,2]
[334253967,1722867056124,-225.59278676,0.00021,2]
[334253968,1722867056134,-183.68876,0.00021119,2]
[334253969,1722867056145,-183.68876,0.00021119,2]
[334253970,1722867056156,-151.0,0.00021142,2]
[334253971,1722867056166,-151.0,0.00021142,2]
[334253972,1722867056176,-2755.0,0.00021151,2]
[334253973,1722867056186,-175869.80992292,0.00021168,2]
[334253974,1722867056196,-151.0,0.00021168,2]
[334253975,1722867056212,-151.0,0.00021168,2]
[334253976,1722867056222,-227.21451,0.00021168,2]
[334253977,1722867056232,-266.4602,0.00021168,2]
[334253978,1722867056242,-266.4602,0.00021168,2]
[334253979,1722867056251,-225.75664,0.00021168,2]
[334253980,1722867056262,-225.75664,0.00021168,2]
[334253981,1722867056271,-151.0,0.00021168,2]
[334253982,1722867056281,-151.0,0.00021168,2]
[334253983,1722867056291,-237.57617,0.00021168,2]
[334253984,1722867056300,-237.57617,0.00021168,2]
[334253985,1722867056310,-264.162203,0.00021168,2]
[334253986,1722867056320,-264.162203,0.00021168,2]
[334253987,1722867056331,-151.0,0.00021168,2]
[334253988,1722867056341,-151.0,0.00021168,2]
[334253989,1722867056351,-151.0,0.00021168,2]
[334253990,1722867056361,-151.0,0.00021168,2]
[334253991,1722867056371,-246.25415,0.00021168,2]
[334253992,1722867056381,-1158.603504,0.00021168,2]
[334253993,1722867056391,-1158.603504,0.00021168,2]
[334253994,1722867056401,-246.25415,0.00021168,2]
[334253995,1722867056411,-151.0,0.00021168,2]
[334253996,1722867056423,-151.0,0.00021168,2]
[334253997,1722867056433,-1354.005518,0.00021168,2]
[334253998,1722867056443,-1354.005518,0.00021168,2]
[334253999,1722867056462,-814.73945,0.00021168,2]
[334254000,1722867056472,-814.73945,0.00021168,2]
[334254001,1722867056483,-151.0,0.00021168,2]
[334254002,1722867056494,-151.0,0.00021168,2]
[334254003,1722867056504,-151.0,0.00021168,2]
[334254004,1722867056514,-248.984585,0.00021168,2]
[334254005,1722867056524,-248.984585,0.00021168,2]
[334254006,1722867056534,-730.409431,0.00021168,2]
[334254007,1722867056544,-730.409431,0.00021168,2]
[334254008,1722867056555,-151.0,0.00021168,2]
[334254009,1722867056566,-151.0,0.00021168,2]
[334254010,1722867056576,-151.0,0.00021168,2]
[334254011,1722867056587,-252.717177,0.00021168,2]
[334254012,1722867056597,-285.384552,0.00021168,2]
[334254013,1722867056607,-252.717177,0.00021168,2]
[334254014,1722867056616,-285.384552,0.00021168,2]
[334254015,1722867056627,-178.516345,0.00021168,2]
[334254016,1722867056637,-178.516345,0.00021168,2]
[334254017,1722867056646,-500.0,0.00021171,2]
[334254018,1722867056656,-1191.0,0.00021178,2]
[334254019,1722867056666,-275.0,0.0002143,2]
[334254020,1722867056676,-530.56,0.00021469,2]
[334254021,1722867056685,-413.18,0.0002149,2]
[334254022,1722867056695,-150.0,0.0002149,2]
[334254023,1722867056709,-500.0,0.00021507,2]
[334254024,1722867056719,-150.0,0.0002151,2]
[334254025,1722867056729,-300.36,0.0002151,2]
[334254026,1722867056739,-150.0,0.0002151,2]
[334254027,1722867056749,-150.0,0.0002151,2]
[334254028,1722867056759,-150.0,0.0002151,2]
[334254029,1722867056770,-150.0,0.0002151,2]
[334254030,1722867056780,-150.0,0.0002151,2]
[334254031,1722867056790,-150.0,0.0002151,2]
[334254032,1722867056800,-151.91,0.00021517,2]
[334254033,1722867056810,-738.205,0.00021533,2]
[334254034,1722867056820,-289.0,0.00021533,2]
[334254035,1722867056830,-5837.0,0.00021533,2]
[334254036,1722867056840,-1075.0,0.00021533,2]
[334254037,1722867056850,-651.55365604,0.00021534,2]
[334254038,1722867056860,-500.0,0.00021535,2]
[334254039,1722867056869,-501.311515,0.00021589,2]
[334254040,1722867056883,-501.311515,0.00021589,2]
[334254041,1722867056892,-151.0,0.00021589,2]
[334254042,1722867056902,-151.0,0.00021589,2]
[334254043,1722867056911,-151.0,0.00021589,2]
[334254044,1722867056922,-151.0,0.00021589,2]
[334254045,1722867056932,-151.0,0.00021589,2]
[334254046,1722867056942,-8161.26,0.00021589,30]
[334254047,1722867056955,-600.0,0.00021638,2]
[334254048,1722867056965,-553.66,0.00021694,2]
[334254049,1722867056977,-2328.95,0.000217,2]
[334254050,1722867056987,-356.74,0.00021726,2]
[334254051,1722867056996,-500.0,0.00021736,2]
[334254052,1722867057007,-600.0,0.00021782,2]
[334254053,1722867057017,-500.0,0.00021847,2]
[334254054,1722867057026,-500.0,0.00021881,2]
[334254055,1722867057036,-2000.0,0.000219,2]
[334254056,1722867057045,-288.0,0.000219,2]
[334254057,1722867057055,-684.0,0.000219,2]
[334254058,1722867057065,-279.05116052,0.000219,2]
[334254059,1722867057076,-3751.77956531,0.000219,2]
[334254060,1722867057087,-401.05803429,0.000219,2]
[334254061,1722867057096,-325.0,0.000219,2]
[334254062,1722867057107,-200.0,0.000219,2]
[334254063,1722867057117,-2000.0,0.00021917,2]
[334254064,1722867057126,-1032.21,0.00021918,2]
[334254065,1722867057136,-585.15,0.00021918,2]
[334254066,1722867057145,-150.0,0.00021918,2]
[334254067,1722867057155,-158.09127302,0.00021918,2]
[334254068,1722867057164,-151.0,0.00021918,7]
[334254069,1722867057174,-201.985667,0.00021918,7]
[334254070,1722867057184,-201.985667,0.00021918,7]
[334254071,1722867057193,-164.761329,0.00021918,7]
[334254072,1722867057207,-151.0,0.00021918,7]
[334254073,1722867057217,-151.0,0.00021918,7]
[334254074,1722867057227,-164.761329,0.00021918,7]
[334254075,1722867057236,-301.921449,0.00021918,7]
[334254076,1722867057246,-151.0,0.00021918,7]
[334254077,1722867057256,-370.954806,0.00021918,7]
[334254078,1722867057266,-370.954806,0.00021918,7]
[334254079,1722867057276,-301.572,0.00021938,2]
[334254080,1722867057286,-500.0,0.0002196,2]
[334254081,1722867057296,-371.74166536,0.00022,2]
[334254082,1722867057307,-250.0,0.00022,30]
[334254083,1722867057317,-240.49145447,0.00022,2]
[334254084,1722867057327,-212.0,0.000221,2]
[334254085,1722867057336,-153.93183382,0.00022115,2]
[334254086,1722867057346,-500.0,0.0002212,2]
[334254087,1722867057356,-1000.0,0.00022178,2]
[334254088,1722867057367,-1000.0,0.00022189,2]
[334254089,1722867057377,-2000.0,0.00022191,2]
[334254090,1722867057387,-600.0,0.00022211,2]
[334254091,1722867057396,-716.43,0.00022311,2]
[334254092,1722867057406,-424.04,0.00022311,2]
[334254093,1722867057416,-150.0,0.00022332,2]
[334254094,1722867057556,-150.0,0.00022332,2]
[334254095,1722867057567,-150.0,0.00022332,2]
[334254096,1722867057576,-301.92,0.00022332,2]
[334254097,1722867057586,-150.0,0.00022332,2]
[334254098,1722867057596,-150.0,0.00022332,2]
[334254099,1722867057605,-150.0,0.00022332,2]
[334254100,1722867057615,-306.29,0.00022332,2]
[334254101,1722867057624,-150.0,0.00022332,2]
[334254102,1722867057634,-530.56,0.00022332,2]
[334254103,1722867057644,-530.56,0.00022332,2]
[334254104,1722867057655,-150.0,0.00022339,2]
[334254105,1722867057664,-356.25,0.00022339,2]
[334254106,1722867057674,-388.82,0.00022339,2]
[334254107,1722867057683,-150.0,0.00022339,2]
[334254108,1722867057692,-600.0,0.0002242,2]
[334254109,1722867057703,-2000.0,0.00022465,2]
[334254110,1722867057712,-1000.0,0.00022466,2]
[334254111,1722867057722,-500.0,0.00022474,2]
[334254112,1722867057732,-150.0,0.00022495,2]
[334254113,1722867057742,-500.0,0.000225,2]
[334254114,1722867057751,-151.0,0.00022597,7]
[334254115,1722867057761,-151.0,0.00022597,7]
[334254116,1722867057770,-200.429869,0.00022597,2]
[334254117,1722867057779,-600.0,0.00022606,2]
[334254118,1722867057788,-500.0,0.00022669,2]
[334254119,1722867057797,-500.0,0.00022729,2]
[334254120,1722867057807,-2000.0,0.00022739,2]
[334254121,1722867057816,-151.0,0.00022742,7]
[334254122,1722867057826,-151.0,0.00022742,7]
[334254123,1722867057835,-2328.95,0.000228,7]
[334254124,1722867057844,-500.0,0.00022815,2]
[334254125,1722867057854,-183.68876,0.00022822,7]
[334254126,1722867057863,-183.68876,0.00022822,7]
[334254127,1722867057874,-275.0,0.0002283,2]
[334254128,1722867057884,-150.0,0.00022871,2]
[334254129,1722867057894,-156.0,0.0002297,9]
[334254130,1722867057906,-120780.0,0.00023,2]
[334254131,1722867057915,-183.68876,0.00023,7]
[334254132,1722867057924,-183.68876,0.00023,7]
[334254133,1722867057933,-357.814623,0.00023,7]
[334254134,1722867057944,-357.814623,0.00023,7]
[334254135,1722867057956,-151.0,0.00023,7]
[334254136,1722867057966,-181.857774,0.00023,7]
[334254137,1722867057977,-151.0,0.00023,7]
[334254138,1722867057987,-151.0,0.00023,7]
[334254139,1722867057996,-151.0,0.00023,7]
[334254140,1722867058006,-168.241138,0.00023,7]
[334254141,1722867058015,-151.0,0.00023,7]
[334254142,1722867058026,-164.524094,0.00023,7]
[334254143,1722867058035,-164.524094,0.00023,7]
[334254144,1722867058045,-349.205615,0.00023,7]
[334254145,1722867058055,-349.205615,0.00023,7]
[334254146,1722867058064,-221.95,0.00023,7]
[334254147,1722867058074,-221.95,0.00023,7]
[334254148,1722867058084,-151.0,0.00023,7]
[334254149,1722867058093,-151.276053,0.00023,7]
[334254150,1722867058103,-277.464589,0.00023,7]
[334254151,1722867058112,-277.464589,0.00023,7]
[334254152,1722867058122,-151.0,0.00023,7]
[334254153,1722867058131,-151.0,0.00023,7]
[334254154,1722867058141,-151.0,0.00023,7]
[334254155,1722867058151,-621.572546,0.00023,2]
[334254156,1722867058160,-891.53169,0.00023,7]
[334254157,1722867058169,-621.572546,0.00023,2]
[334254158,1722867058179,-891.53169,0.00023,7]
[334254159,1722867058189,-151.0,0.00023,7]
[334254160,1722867058198,-562.348371,0.00023,7]
[334254161,1722867058214,-562.348371,0.00023,7]
[334254162,1722867058223,-940.908785,0.00023,7]
[334254163,1722867058232,-940.908785,0.00023,7]
[334254164,1722867058242,-151.0,0.00023,7]
[334254165,1722867058251,-151.0,0.00023,7]
[334254166,1722867058262,-223.32,0.00023,7]
[334254167,1722867058272,-223.32,0.00023,7]
[334254168,1722867058282,-151.0,0.00023,7]
[334254169,1722867058292,-349.327027,0.00023,7]
[334254170,1722867058301,-151.0,0.00023,7]
[334254171,1722867058311,-180.821879,0.00023,7]
[334254172,1722867058320,-349.327027,0.00023,7]
[334254173,1722867058330,-180.821879,0.00023,7]
[334254174,1722867058339,-151.0,0.00023,7]
[334254175,1722867058349,-151.0,0.00023,7]
[334254176,1722867058359,-204.312271,0.00023,7]
[334254177,1722867058368,-204.312271,0.00023,7]
[334254178,1722867058378,-151.0,0.00023,7]
[334254179,1722867058387,-151.0,0.00023,7]
[334254180,1722867058397,-151.0,0.00023,7]
[334254181,1722867058406,-151.0,0.00023,7]
[334254182,1722867058415,-151.0,0.00023,7]
[334254183,1722867058425,-151.0,0.00023,7]
[334254184,1722867058434,-151.0,0.00023,7]
[334254185,1722867058443,-298.307461,0.00023,7]
[334254186,1722867058455,-2575.795641,0.00023,7]
[334254187,1722867058464,-2575.795641,0.00023,7]
[334254188,1722867058474,-363.745352,0.00023,7]
[334254189,1722867058484,-363.745352,0.00023,7]
[334254190,1722867058493,-192.556546,0.00023,7]
[334254191,1722867058503,-151.0,0.00023,7]
[334254192,1722867058512,-151.0,0.00023,7]
[334254193,1722867058522,-151.0,0.00023,7]
[334254194,1722867058531,-151.0,0.00023,7]
[334254195,1722867058541,-155.326154,0.00023,7]
[334254196,1722867058550,-155.326154,0.00023,7]
[334254197,1722867058560,-151.0,0.00023,7]
[334254198,1722867058569,-151.0,0.00023,7]
[334254199,1722867058579,-259.884572,0.00023,7]
[334254200,1722867058588,-259.884572,0.00023,7]
[334254201,1722867058597,-151.0,0.00023,7]
[334254202,1722867058606,-173.0,0.00023,2]
[334254203,1722867058616,-2000.0,0.00023013,2]
[334254204,1722867058625,-642.156,0.00023033,2]
[334254205,1722867058635,-1253.0,0.00023033,2]
[334254206,1722867058644,-1893.0,0.00023033,2]
[334254207,1722867058654,-438.655,0.00023033,2]
[334254208,1722867058663,-1832.563,0.00023033,2]
[334254209,1722867058672,-150.0,0.00023033,2]
[334254210,1722867058682,-320.0,0.00023046,2]
[334254211,1722867058691,-152.0,0.00023066,3]
[334254212,1722867058705,-150.0,0.00023071,2]
[334254213,1722867058715,-600.0,0.00023149,2]
[334254214,1722867058725,-426.02,0.00023153,2]
[334254215,1722867058735,-426.02,0.00023153,2]
[334254216,1722867058744,-426.02,0.00023153,2]
[334254217,1722867058753,-426.02,0.00023153,2]
[334254218,1722867058763,-426.02,0.00023153,2]
[334254219,1722867058772,-180.0,0.00023205,2]
[334254220,1722867058782,-500.0,0.00023254,2]
[334254221,1722867058791,-2000.0,0.00023287,2]
[334254222,1722867058801,-320.0,0.00023334,2]
[334254223,1722867058811,-600.0,0.0002334,2]
[334254224,1722867058820,-600.0,0.00023392,2]
[334254225,1722867058830,-968.33119609,0.0002354,2]
[334254226,1722867058839,-212.0,0.0002355,2]
[334254227,1722867058849,-2000.0,0.00023561,2]
[334254228,1722867058859,-151.0,0.00023561,7]
[334254229,1722867058868,-225.160105,0.00023561,7]
[334254230,1722867058878,-225.160105,0.00023561,7]
[334254231,1722867058888,-417.702779,0.00023561,7]
[334254232,1722867058900,-713.026946,0.00023561,7]
[334254233,1722867058909,-417.702779,0.00023561,7]
[334254234,1722867058918,-713.026946,0.00023561,7]
[334254235,1722867058928,-151.0,0.00023561,7]
[334254236,1722867058939,-151.0,0.00023561,7]
[334254237,1722867058948,-151.0,0.00023561,7]
[334254238,1722867058961,-1104.102521,0.00023561,7]
[334254239,1722867058971,-151.0,0.00023561,7]
[334254240,1722867058981,-1104.102521,0.00023561,7]
[334254241,1722867058991,-151.0,0.00023561,7]
[334254242,1722867059000,-289.806044,0.00023561,7]
[334254243,1722867059010,-151.0,0.00023561,7]
[334254244,1722867059019,-151.0,0.00023561,7]
[334254245,1722867059029,-289.806044,0.00023561,7]
[334254246,1722867059038,-1524.041642,0.00023561,7]
[334254247,1722867059047,-1524.041642,0.00023561,7]
[334254248,1722867059057,-269.767939,0.00023561,7]
[334254249,1722867059069,-269.767939,0.00023561,7]
[334254250,1722867059078,-320.0,0.00023622,2]
[334254251,1722867059089,-600.0,0.00023627,2]
[334254252,1722867059099,-150.0,0.00023648,2]
[334254253,1722867059109,-200.429869,0.00023727,2]
[334254254,1722867059119,-2000.0,0.00023835,2]
[334254255,1722867059128,-500.0,0.00023837,2]
[334254256,1722867059138,-152.0,0.00023859,4]
[334254257,1722867059148,-23408.70528311,0.0002388,2]
[334254258,1722867059158,-320.0,0.0002391,2]
[334254259,1722867059168,-553.66,0.00023958,2]
[334254260,1722867059177,-188.0,0.0002397,30]
[334254261,1722867059187,-188.0,0.0002398,30]
[334254262,1722867059197,-301.2,0.00023983,2]
[334254263,1722867059210,-188.0,0.0002399,30]
[334254264,1722867059221,-151.0,0.0002399,7]
[334254265,1722867059231,-4166.16481,0.0002399,7]
[334254266,1722867059240,-4166.16481,0.0002399,7]
[334254267,1722867059250,-311.9744,0.0002399,7]
[334254268,1722867059260,-311.9744,0.0002399,7]
[334254269,1722867059270,-311.139327,0.0002399,7]
[334254270,1722867059280,-350.267283,0.0002399,7]
[334254271,1722867059290,-350.267283,0.0002399,7]
[334254272,1722867059300,-311.139327,0.0002399,7]
[334254273,1722867059310,-211.979302,0.0002399,7]
[334254274,1722867059320,-211.979302,0.0002399,7]
[334254275,1722867059330,-637.67,0.00023991,2]
[334254276,1722867059339,-223.40695585,0.00023998,2]
[334254277,1722867059348,-828.6921933,0.00024,3]
[334254278,1722867059358,-194.673083,0.00024,7]
[334254279,1722867059367,-151.0,0.00024,7]
[334254280,1722867059377,-151.0,0.00024,7]
[334254281,1722867059387,-305.48439555,0.00024044,2]
[334254282,1722867059396,-151.0,0.00024095,7]
[334254283,1722867059405,-154.790841,0.00024095,7]
[334254284,1722867059415,-154.790841,0.00024095,7]
[334254285,1722867059424,-151.0,0.00024095,7]
[334254286,1722867059434,-151.0,0.00024095,7]
[334254287,1722867059444,-246.25415,0.00024095,7]
[334254288,1722867059458,-1158.603504,0.00024095,7]
[334254289,1722867059468,-1158.603504,0.00024095,7]
[334254290,1722867059477,-246.25415,0.00024095,7]
[334254291,1722867059487,-151.0,0.00024095,7]
[334254292,1722867059496,-151.0,0.00024095,7]
[334254293,1722867059506,-1354.005518,0.00024095,7]
[334254294,1722867059516,-1354.005518,0.00024095,7]
[334254295,1722867059525,-814.73945,0.00024095,7]
[334254296,1722867059534,-814.73945,0.00024095,7]
[334254297,1722867059544,-151.0,0.00024095,7]